bitfinex-derivatives/quotes_BTCF0:USTF0_20260113
["timestamp","ask_amount","ask_price","bid_price","bid_amount"]
[1768334818780,0.09905329,94357.0,94340.0,0.010604]
[1768334818974,0.09905329,94357.0,94340.0,0.43]
[1768334819169,0.09544,94365.0,94345.0,0.18827645]
[1768334819377,0.09544,94364.0,94347.0,0.09218164]
[1768334819683,0.09544,94364.0,94347.0,0.06]
[1768334820078,0.10965429,94363.0,94347.0,0.06]
[1768334820280,0.09905329,94362.0,94347.0,0.06]
[1768334820485,0.1923826,94354.0,94347.0,0.00984107]
[1768334820681,0.09905329,94351.0,94347.0,0.01]
[1768334820884,0.010601,94368.0,94328.0,0.09]
[1768334820885,0.1923826,94345.0,94328.0,0.09]
[1768334821078,0.09905329,94340.0,94328.0,0.06]
[1768334821271,0.19449329,94340.0,94328.0,0.06]
[1768334821583,0.010604,94337.0,94328.0,0.06]
[1768334821781,0.19449329,94340.0,94328.0,0.06]
[1768334822680,0.19449329,94340.0,94328.0,0.08]
[1768334822877,0.19449329,94340.0,94328.0,0.4]
[1768334823078,0.19449329,94340.0,94328.0,0.392]
[1768334826177,0.10638025,94338.0,94328.0,0.392]
[1768334826389,0.10638025,94334.0,94312.0,0.09544]
[1768334826574,0.09577625,94340.0,94315.0,0.19651716]
[1768334826774,0.18751105,94338.0,94315.0,0.45]
[1768334826984,0.010604,94335.0,94315.0,0.45]
[1768334827191,0.1977788,94335.0,94315.0,0.45]
[1768334827579,0.1871748,94335.0,94315.0,0.45]
[1768334827982,0.09544,94335.0,94322.0,0.09833379]
[1768334828283,0.09577625,94333.0,94322.0,0.06]
[1768334828481,0.0917348,94332.0,94313.0,0.0053015]
[1768334828681,0.18751105,94331.0,94313.0,0.4153015]
[1768334829088,0.09577625,94328.0,94313.0,0.0253015]
[1768334829285,0.010605,94325.0,94313.0,0.16546051]
[1768334829493,0.0917348,94329.0,94296.0,0.00012905]
[1768334829494,0.010607,94314.0,94296.0,0.00012905]
[1768334829790,0.09577625,94314.0,94296.0,0.17012905]
[1768334830189,0.0917348,94317.0,94297.0,0.010609]
[1768334830388,0.0917348,94317.0,94297.0,0.18]
[1768334830988,0.00015901,94316.0,94297.0,0.168]
[1768334832295,0.01076601,94316.0,94297.0,0.168]
[1768334832489,0.010607,94315.0,94297.0,0.168]
[1768334832689,0.010607,94308.0,94297.0,0.168]
[1768334832992,0.010607,94308.0,94297.0,0.06]
[1768334833287,0.19835534,94316.0,94264.0,1.46386427]
[1768334833288,0.09577625,94302.0,94278.0,0.18818337]
[1768334833495,0.010609,94296.0,94278.0,0.42]
[1768334833696,0.1872148,94298.0,94278.0,0.42]
[1768334833994,0.09548,94297.0,94278.0,0.42]
[1768334834294,0.00010104,94296.0,94278.0,0.42]
[1768334834696,0.00010104,94296.0,94282.0,0.09818337]
[1768334834896,0.0917348,94312.0,94287.0,0.09833379]
[1768334835097,0.09548,94311.0,94292.0,0.09818337]
[1768334835294,0.010603,94342.0,94293.0,0.19651716]
[1768334835593,0.30090302,94468.0,94346.0,0.19651716]
[1768334835594,0.01038665,94387.0,94346.0,0.19651716]
[1768334835795,0.01038665,94387.0,94296.0,0.053045]
[1768334835796,0.08138588,94373.0,94332.0,0.19651716]
[1768334835995,0.010601,94369.0,94333.0,0.19381379]
[1768334836194,0.08138588,94365.0,94337.0,0.09833379]
[1768334836394,0.09548,94364.0,94343.0,0.10486158]
[1768334836695,0.09548,94364.0,94348.0,0.010603]
[1768334836885,0.09548,94364.0,94348.0,0.06]
[1768334837190,0.09548,94364.0,94344.0,0.10486158]
[1768334837497,0.09548,94364.0,94348.0,0.010603]
[1768334838094,0.09548,94364.0,94344.0,0.10486158]
[1768334838300,0.09548,94363.0,94344.0,0.15425858]
[1768334838613,0.18617598,94359.0,94344.0,0.038]
[1768334838789,0.09548,94363.0,94328.0,0.09425858]
[1768334838790,0.09395891,94354.0,94328.0,0.09425858]
[1768334839096,0.18617598,94354.0,94328.0,0.15425858]
[1768334839398,0.18617598,94344.0,94328.0,0.06]
[1768334840086,0.00530037,94333.0,94328.0,0.06]
[1768334840691,0.09563901,94345.0,94328.0,0.04]
[1768334842002,0.09563901,94345.0,94329.0,0.09425858]
[1768334842189,0.09563901,94345.0,94332.0,0.010605]
[1768334842390,0.09563901,94345.0,94332.0,0.070605]
[1768334842793,0.18617598,94367.0,94333.0,0.09425858]
[1768334842996,0.09548,94366.0,94349.0,0.010603]
[1768334843199,0.09395891,94376.0,94352.0,0.010602]
[1768334843200,0.09548,94365.0,94352.0,0.010602]
[1768334843392,0.09548,94364.0,94349.0,0.09425858]
[1768334844498,0.09548,94364.0,94349.0,0.10486158]
[1768334844799,0.09548,94364.0,94350.0,0.09425858]
[1768334845994,0.09548,94364.0,94347.0,0.00015901]
[1768334846600,0.0106,94370.0,94344.0,0.09847024]
[1768334846796,0.09395891,94360.0,94327.0,0.09847024]
[1768334847104,0.09395891,94360.0,94333.0,0.010604]
[1768334847298,0.09395891,94360.0,94333.0,0.070604]
[1768334847893,0.09395891,94358.0,94333.0,0.06]
[1768334848092,0.09221707,94357.0,94333.0,0.06]
[1768334848299,0.09395891,94356.0,94333.0,0.06]
[1768334848694,0.09395891,94356.0,94333.0,0.070604]
[1768334849305,0.09395891,94356.0,94333.0,0.06]
[1768334849894,0.09544,94359.0,94318.0,0.09544]
[1768334849895,0.09395891,94342.0,94318.0,0.09544]
[1768334850094,0.09395891,94341.0,94318.0,0.12544]
[1768334850296,0.00015901,94339.0,94318.0,0.12544]
[1768334850497,0.010605,94333.0,94318.0,0.12544]
[1768334850800,0.010605,94333.0,94318.0,0.03]
[1768334851003,0.010605,94329.0,94318.0,0.03]
[1768334852901,0.010605,94327.0,94318.0,0.03]
[1768334853108,0.010605,94325.0,94318.0,0.03]
[1768334853698,0.010604,94338.0,94318.0,0.03]
[1768334853900,0.010605,94331.0,94318.0,0.03]
[1768334854100,0.010605,94331.0,94318.0,0.025]
[1768334854299,0.010605,94329.0,94318.0,0.025]
[1768334854499,0.010605,94327.0,94318.0,0.025]
[1768334854699,0.00015901,94339.0,94318.0,0.025]
[1768334855401,0.010605,94327.0,94318.0,0.025]
[1768334855601,0.010605,94325.0,94318.0,0.025]
[1768334855803,0.010605,94330.0,94318.0,0.025]
[1768334856109,0.010605,94331.0,94318.0,0.025]
[1768334856504,0.010605,94326.0,94318.0,0.025]
[1768334856705,0.010605,94329.0,94318.0,0.025]
[1768334857009,0.00015901,94339.0,94318.0,0.21090138]
[1768334857200,0.010605,94329.0,94318.0,0.21090138]
[1768334857400,0.010605,94325.0,94318.0,0.025]
[1768334857607,0.010605,94325.0,94313.0,0.1007415]
[1768334857800,0.010604,94337.0,94313.0,0.24241225]
[1768334858113,0.00015901,94339.0,94316.0,0.18590138]
[1768334858409,0.010605,94329.0,94316.0,0.23590138]
[1768334858610,0.010605,94325.0,94316.0,0.23590138]
[1768334859410,0.010606,94323.0,94316.0,0.23590138]
[1768334859601,0.010604,94335.0,94316.0,0.23590138]
[1768334859799,0.010605,94326.0,94316.0,0.23590138]
[1768334859999,0.010604,94335.0,94316.0,0.23590138]
[1768334860407,0.010605,94328.0,94316.0,0.23590138]
[1768334860710,0.010605,94333.0,94317.0,0.09167075]
[1768334860912,0.010605,94333.0,94317.0,0.15167075]
[1768334861104,0.010605,94333.0,94317.0,0.24590138]
[1768334861798,0.010605,94333.0,94317.0,0.24190138]
[1768334862108,0.010604,94337.0,94321.0,0.010606]
[1768334862408,0.09548,94370.0,94351.0,0.010602]
[1768334862603,0.09548,94369.0,94348.0,0.10483363]
[1768334862799,0.010601,94363.0,94348.0,0.09423063]
[1768334863005,0.010601,94366.0,94349.0,0.010603]
[1768334863204,0.010601,94362.0,94343.0,0.010603]
[1768334863499,0.09548,94369.0,94341.0,0.09423063]
[1768334863707,0.09548,94368.0,94349.0,0.010603]
[1768334864006,0.010601,94363.0,94348.0,0.18606039]
[1768334864413,0.09548,94368.0,94348.0,0.18606039]
[1768334864611,0.010601,94363.0,94348.0,0.18606039]
[1768334865216,0.010601,94367.0,94349.0,0.18590138]
[1768334865513,4e-05,94363.0,94349.0,0.18590138]
[1768334866099,4e-05,94363.0,94349.0,0.19650438]
[1768334866304,0.09548,94366.0,94352.0,0.18590138]
[1768334866614,4e-05,94363.0,94352.0,0.18590138]
[1768334868415,4e-05,94363.0,94348.0,0.00015901]
[1768334868717,8e-05,94363.0,94348.0,0.00015901]
[1768334868909,0.010601,94361.0,94348.0,0.00015901]
[1768334869217,0.09544,94386.0,94361.0,0.09423063]
[1768334869410,0.010599,94382.0,94362.0,0.09167075]
[1768334869608,0.010599,94379.0,94362.0,0.09167075]
[1768334869807,0.14054377,94390.0,94366.0,0.18590138]
[1768334869808,0.00012,94390.0,94366.0,0.18590138]
[1768334870112,0.10077588,94413.0,94385.0,0.09167075]
[1768334870317,0.010596,94406.0,94385.0,0.09167075]
[1768334870617,0.015893,94406.0,94388.0,0.0001589]
[1768334870815,0.010597,94404.0,94388.0,0.0001589]
[1768334871006,0.010596,94405.0,94388.0,0.0001589]
[1768334871313,0.010596,94405.0,94388.0,0.09182965]
[1768334872407,0.010636,94405.0,94388.0,0.09182965]
[1768334872605,4e-05,94405.0,94388.0,0.09182965]
[1768334873011,8e-05,94405.0,94388.0,0.16182965]
[1768334873215,0.010597,94402.0,94388.0,0.16182965]
[1768334874021,0.010597,94398.0,94388.0,0.0701589]
[1768334874318,0.09884927,94398.0,94372.0,0.09423063]
[1768334874517,0.010598,94392.0,94374.0,0.18590138]
[1768334874710,0.010597,94396.0,94377.0,0.18590138]
[1768334874910,0.0001589,94404.0,94382.0,0.18590138]
[1768334875111,0.09544,94403.0,94387.0,0.09167075]
[1768334875311,0.09544,94403.0,94387.0,0.15167075]
[1768334876714,0.0001589,94404.0,94387.0,0.15167075]
[1768334876715,0.010593,94438.0,94413.0,0.14914342]
[1768334876921,0.010593,94434.0,94419.0,0.09167075]
[1768334877114,0.10073476,94433.0,94419.0,0.06]
[1768334877417,0.10944327,94429.0,94419.0,0.01]
[1768334877625,0.09544,94432.0,94419.0,0.31]
[1768334877812,0.00529476,94433.0,94419.0,0.31]
[1768334878117,0.09544,94438.0,94419.0,0.31]
[1768334878319,0.0001589,94435.0,94419.0,0.31]
[1768334878504,0.0001589,94435.0,94417.0,0.0001589]
[1768334878708,0.0001589,94435.0,94417.0,0.33]
[1768334878906,0.42968,94432.0,94417.0,0.06]
[1768334879122,0.0001589,94435.0,94417.0,0.33]
[1768334879310,0.0107919,94435.0,94417.0,0.33]
[1768334879511,0.010593,94432.0,94417.0,0.33]
[1768334879712,0.010593,94434.0,94417.0,0.33]
[1768334880013,0.0002789,94435.0,94417.0,0.06]
[1768334880220,0.0002789,94435.0,94417.0,0.35]
[1768334881218,0.0002789,94435.0,94418.0,0.010595]
[1768334881519,0.00529364,94453.0,94418.0,0.010595]
[1768334881520,0.00529364,94453.0,94425.0,0.14042377]
[1768334881709,0.09884927,94452.0,94425.0,0.06]
[1768334881915,0.42968,94448.0,94427.0,0.010594]
[1768334882115,1.5954,94447.0,94427.0,0.06]
[1768334882309,1.5,94447.0,94427.0,0.06]
[1768334882517,0.010592,94441.0,94427.0,0.06]
[1768334882810,0.09884927,94431.0,94417.0,0.0001589]
[1768334883019,0.0954,94433.0,94417.0,0.0601589]
[1768334883218,0.0954,94433.0,94407.0,0.05723293]
[1768334883417,0.105993,94433.0,94408.0,0.010596]
[1768334883721,0.010594,94430.0,94408.0,0.06]
[1768334884126,0.0954,94433.0,94410.0,0.010596]
[1768334884422,0.0954,94432.0,94410.0,0.06]
[1768334884616,0.010594,94427.0,94410.0,0.06]
[1768334884818,0.105994,94426.0,94410.0,0.02]
[1768334885122,0.010594,94426.0,94410.0,0.06]
[1768334885318,0.0954,94425.0,94410.0,0.06]
[1768334885519,0.010595,94422.0,94386.0,0.010598]
[1768334885717,0.105994,94425.0,94400.0,0.010597]
[1768334885920,0.0954,94425.0,94405.0,0.010596]
[1768334886222,0.0954,94425.0,94405.0,0.060596]
[1768334886423,0.42968,94424.0,94405.0,0.038596]
[1768334887117,0.42968,94424.0,94408.0,0.010596]
[1768334887312,0.42968,94424.0,94410.0,0.010596]
[1768334887526,0.0954,94423.0,94413.0,0.010595]
[1768334887717,4e-05,94424.0,94413.0,0.060595]
[1768334888026,0.42968,94423.0,94413.0,0.05]
[1768334888222,0.0954,94422.0,94413.0,0.05]
[1768334888519,0.42968,94423.0,94413.0,0.05]
[1768334888719,0.42968,94423.0,94414.0,0.010595]
[1768334889032,0.52508,94423.0,94414.0,0.05]
[1768334889926,0.42968,94423.0,94414.0,0.05]
[1768334890220,0.0954,94422.0,94414.0,0.05]
[1768334890616,0.09192359,94421.0,94396.0,0.010597]
[1768334890810,0.010595,94416.0,94396.0,0.01]
[1768334891011,0.09192359,94411.0,94396.0,0.01]
[1768334891323,0.0954,94410.0,94396.0,0.01]
[1768334891527,0.42968,94408.0,94396.0,0.01]
[1768334892619,0.42972,94408.0,94396.0,0.01]
[1768334894230,0.42972,94408.0,94396.0,0.002]
[1768334894430,0.42972,94408.0,94396.0,0.00192922]
[1768334894627,0.42976,94408.0,94396.0,0.00192922]
[1768334895129,0.4298,94408.0,94397.0,0.010597]
[1768334895325,0.42984,94408.0,94397.0,0.05]
[1768334895728,0.42988,94408.0,94397.0,0.05]
[1768334897330,0.09321735,94407.0,94397.0,0.02]
[1768334897522,0.09321735,94407.0,94397.0,0.05]
[1768334898127,0.42988,94408.0,94397.0,0.3]
[1768334898329,0.0954,94407.0,94397.0,0.310597]
[1768334898635,0.0954,94406.0,94397.0,0.060597]
[1768334898831,0.0954,94405.0,94397.0,0.060597]
[1768334899232,0.89816,94412.0,94401.0,0.010597]
[1768334899429,0.09321735,94422.0,94401.0,0.05]
[1768334899632,0.99356,94421.0,94401.0,0.4]
[1768334899832,0.99356,94421.0,94408.0,0.010596]
[1768334900036,0.99356,94421.0,94408.0,0.070596]
[1768334900229,0.99356,94421.0,94410.0,0.010596]
[1768334900426,0.99356,94421.0,94410.0,0.05]
[1768334900734,0.9936,94421.0,94410.0,0.05]
[1768334901038,0.010593,94438.0,94410.0,0.05]
[1768334901039,0.09069316,94420.0,94410.0,0.37]
[1768334901233,0.09321735,94429.0,94415.0,0.010595]
[1768334901433,4e-05,94421.0,94417.0,0.010595]
[1768334901627,0.09321735,94429.0,94419.0,0.010595]
[1768334901834,0.99356,94428.0,94419.0,0.06]
[1768334902637,0.99356,94428.0,94419.0,0.051]
[1768334903636,0.9936,94428.0,94419.0,0.051]
[1768334903934,0.9936,94427.0,94419.0,0.051]
[1768334904536,0.09321735,94423.0,94413.0,0.0001589]
[1768334904730,0.18408745,94413.0,94394.0,0.08]
[1768334905032,0.18408745,94413.0,94397.0,0.010597]
[1768334905033,0.08792147,94408.0,94397.0,0.010597]
[1768334905224,0.0954,94407.0,94397.0,0.37]
[1768334905428,0.8982,94416.0,94413.0,0.010595]
[1768334905629,0.8982,94420.0,94419.0,0.010595]
[1768334905935,0.8982,94425.0,94421.0,0.010594]
[1768334906149,0.8982,94425.0,94403.0,0.09031545]
[1768334906150,0.0954,94424.0,94414.0,0.010595]
[1768334906341,0.0954,94424.0,94414.0,0.05]
[1768334907340,0.09321735,94423.0,94414.0,0.05]
[1768334908441,0.09321735,94423.0,94409.0,0.010596]
[1768334908643,0.09321735,94423.0,94409.0,0.060596]
[1768334909343,0.09325735,94423.0,94409.0,0.05]
[1768334909842,0.09321735,94422.0,94409.0,0.05]
[1768334910037,0.09321735,94421.0,94409.0,0.05]
[1768334910440,0.09321735,94421.0,94409.0,0.043]
[1768334912849,0.10381235,94420.0,94409.0,0.043]
[1768334913437,0.09321735,94420.0,94409.0,0.043]
[1768334913651,0.010595,94419.0,94409.0,0.043]
[1768334913951,0.010595,94417.0,94409.0,0.043]
[1768334914250,0.09321735,94405.0,94393.0,0.005297]
[1768334914437,0.09321735,94404.0,94393.0,0.06]
[1768334914644,0.010597,94402.0,94393.0,0.04]
[1768334915341,0.09321735,94404.0,94393.0,0.04]
[1768334916948,0.010597,94403.0,94393.0,0.04]
[1768334917949,0.010597,94401.0,94393.0,0.04]
[1768334918150,0.010597,94401.0,94393.0,0.019]
[1768334918350,0.0001589,94407.0,94393.0,0.019]
[1768334918351,0.010597,94399.0,94393.0,0.019]
[1768334918546,0.010597,94398.0,94393.0,0.019]
[1768334918947,0.09219619,94406.0,94393.0,1e-06]
[1768334919339,0.010597,94403.0,94393.0,0.020001]
[1768334919855,0.10279219,94406.0,94393.0,0.020001]
[1768334920040,0.010596,94410.0,94394.0,0.09780637]
[1768334920242,0.0954,94426.0,94397.0,0.09963283]
[1768334920446,0.10295019,94428.0,94401.0,0.09963283]
[1768334920447,0.010595,94421.0,94401.0,0.09963283]
[1768334920749,0.010595,94421.0,94405.0,0.09780637]
[1768334920951,0.010595,94421.0,94405.0,0.51780637]
[1768334921158,0.010595,94418.0,94406.0,0.09780637]
[1768334921453,0.010595,94418.0,94406.0,0.52780637]
[1768334922751,0.09235619,94428.0,94407.0,0.09780637]
[1768334922952,0.010595,94420.0,94407.0,0.40780637]
[1768334923150,0.010595,94418.0,94407.0,0.40780637]
[1768334925454,0.010595,94418.0,94407.0,0.15780637]
[1768334925656,0.010596,94413.0,94407.0,0.06]
[1768334925859,0.09219619,94417.0,94407.0,0.05]
[1768334926655,0.010595,94422.0,94407.0,0.05]
[1768334926855,0.010595,94415.0,94407.0,0.037]
[1768334927456,0.010595,94418.0,94407.0,0.037]
[1768334927656,0.00012,94423.0,94407.0,0.37480637]
[1768334927847,0.010595,94420.0,94407.0,0.37480637]
[1768334928258,0.010595,94418.0,94407.0,0.37480637]
[1768334929364,0.00012,94423.0,94408.0,0.09780637]
[1768334929545,0.00012,94423.0,94409.0,0.09780637]
[1768334929749,0.00012,94423.0,94410.0,0.09780637]
[1768334929949,0.00012,94423.0,94410.0,0.57780637]
[1768334930458,0.00012,94423.0,94410.0,0.48]
[1768334931259,0.010595,94418.0,94410.0,0.48]
[1768334931659,0.010595,94421.0,94410.0,0.48]
[1768334932060,0.010595,94419.0,94410.0,0.48]
[1768334932653,0.00012,94423.0,94410.0,0.57780637]
[1768334933256,0.0001589,94424.0,94411.0,0.09780637]
[1768334933456,0.010591,94457.0,94411.0,0.09780637]
[1768334933457,0.010592,94448.0,94429.0,0.1974392]
[1768334933651,0.010592,94445.0,94430.0,0.09536]
[1768334933844,0.09219619,94451.0,94430.0,0.47536]
[1768334934050,0.010592,94445.0,94430.0,0.47536]
[1768334934251,0.010592,94443.0,94430.0,0.47536]
[1768334934561,0.010592,94441.0,94430.0,0.46436]
[1768334934960,0.09219619,94451.0,94430.0,0.46436]
[1768334934961,0.010592,94442.0,94430.0,0.46436]
[1768334935156,0.010593,94440.0,94430.0,0.38]
[1768334935462,0.09219619,94451.0,94431.0,0.09536]
[1768334935661,0.09219619,94451.0,94431.0,0.53536]
[1768334936169,1.5,94452.0,94432.0,0.09780637]
[1768334936361,1.5,94452.0,94432.0,0.19780637]
[1768334936551,1.5,94452.0,94432.0,0.14780637]
[1768334937357,1.5,94452.0,94432.0,0.51780637]
[1768334937561,0.09219619,94458.0,94433.0,0.1974392]
[1768334937753,0.09219619,94458.0,94435.0,0.09780637]
[1768334937947,0.09219619,94458.0,94436.0,0.09780637]
[1768334938264,0.09748983,94453.0,94437.0,0.09536]
[1768334938453,0.010593,94440.0,94438.0,0.09536]
[1768334938758,0.010593,94435.0,94429.0,0.90852]
[1768334938962,0.010592,94445.0,94429.0,0.46]
[1768334939164,0.09219619,94446.0,94430.0,1.00388]
[1768334939355,0.09219619,94446.0,94430.0,1.43388]
[1768334939663,0.010593,94440.0,94430.0,1.43388]
[1768334939848,0.010591,94452.0,94430.0,1.43388]
[1768334939849,0.010593,94438.0,94430.0,1.43388]
[1768334940049,0.09219619,94447.0,94430.0,1.43388]
[1768334940452,0.010593,94438.0,94430.0,1.43388]
[1768334940963,0.09219619,94447.0,94430.0,1.43388]
[1768334941664,0.010593,94439.0,94430.0,1.43388]
[1768334941863,0.010592,94448.0,94430.0,1.43388]
[1768334942066,0.010592,94448.0,94430.0,1.53168637]
[1768334942259,0.010592,94448.0,94430.0,1.52668637]
[1768334942659,0.010593,94437.0,94430.0,0.52780637]
[1768334942957,0.010592,94448.0,94431.0,1.00384]
[1768334943156,0.09748983,94453.0,94432.0,0.09780637]
[1768334943356,0.09748983,94453.0,94433.0,0.09780637]
[1768334943560,0.010592,94447.0,94433.0,0.54780637]
[1768334943766,0.010592,94445.0,94433.0,0.54780637]
[1768334943959,0.010592,94443.0,94433.0,0.54780637]
[1768334944158,0.09748983,94453.0,94433.0,0.54780637]
[1768334944356,0.010592,94443.0,94433.0,0.54780637]
[1768334944858,0.09748983,94453.0,94433.0,0.54780637]
[1768334945057,0.09331256,94452.0,94433.0,0.06]
[1768334945259,0.010592,94441.0,94433.0,0.06]
[1768334945467,0.09331256,94452.0,94433.0,0.06]
[1768334945763,0.010593,94439.0,94433.0,0.06]
[1768334946065,0.09331256,94452.0,94433.0,0.06]
[1768334946265,0.01588464,94453.0,94434.0,0.09446182]
[1768334946467,0.01588464,94453.0,94435.0,0.09446182]
[1768334946665,0.01588464,94453.0,94435.0,0.43446182]
[1768334947456,0.01588464,94453.0,94435.0,0.34]
[1768334948364,0.010592,94444.0,94435.0,0.34]
[1768334948564,0.010592,94445.0,94435.0,0.06]
[1768334948752,0.1091972,94453.0,94431.0,1.00384]
[1768334948959,0.010594,94429.0,94427.0,0.0001589]
[1768334949267,0.010594,94429.0,94428.0,0.09536]
[1768334949470,0.09331256,94440.0,94426.0,0.09536]
[1768334949669,0.010592,94445.0,94426.0,0.50536]
[1768334950171,0.010592,94445.0,94426.0,0.48036]
[1768334950359,0.010592,94445.0,94426.0,0.22036]
[1768334950671,0.010592,94440.0,94426.0,0.22036]
[1768334950968,0.09331256,94447.0,94426.0,0.22036]
[1768334951972,0.010592,94440.0,94426.0,0.22036]
[1768334952974,0.010593,94439.0,94426.0,0.22036]
[1768334953159,0.09331256,94447.0,94426.0,0.22036]
[1768334953160,0.10390456,94442.0,94426.0,0.22036]
[1768334953360,0.09331256,94449.0,94426.0,0.22036]
[1768334953674,0.010592,94441.0,94426.0,0.24711527]
[1768334953873,0.010592,94448.0,94430.0,0.03723574]
[1768334954174,0.010592,94445.0,94431.0,0.02664174]
[1768334954472,0.010592,94445.0,94431.0,0.05]
[1768334955177,0.010592,94448.0,94431.0,0.05]
[1768334955378,0.010592,94448.0,94431.0,0.07664174]
[1768334955767,0.010592,94448.0,94431.0,0.08664174]
[1768334956675,0.010592,94446.0,94431.0,0.08664174]
[1768334957173,0.010592,94446.0,94431.0,0.06]
[1768334957575,1.69088973,94454.0,94431.0,0.06]
[1768334957576,1.5,94454.0,94443.0,0.02709807]
[1768334957878,1.5,94454.0,94443.0,0.06409807]
[1768334958173,1.5,94454.0,94433.0,0.09031265]
[1768334958371,0.010592,94444.0,94434.0,0.09536]
[1768334958570,0.010593,94440.0,94434.0,0.05]
[1768334958969,0.010593,94437.0,94434.0,0.01]
[1768334959169,0.010593,94440.0,94434.0,0.05]
[1768334959379,0.09646025,94446.0,94434.0,0.05]
[1768334959380,0.010592,94443.0,94434.0,0.05]
[1768334959574,0.09655745,94446.0,94434.0,0.05]
[1768334960276,0.010592,94443.0,94434.0,0.05]
[1768334960477,0.010592,94440.0,94434.0,0.05]
[1768334960868,0.010593,94439.0,94430.0,0.09536]
[1768334961070,0.010593,94438.0,94430.0,0.19]
[1768334961476,0.09646025,94445.0,94430.0,0.19]
[1768334961676,0.010593,94439.0,94430.0,0.19]
[1768334961879,0.00015882,94443.0,94430.0,0.19]
[1768334962078,0.09646025,94412.0,94386.0,0.09280785]
[1768334962275,0.00015882,94443.0,94386.0,0.09280785]
[1768334962276,0.09655745,94408.0,94387.0,1.09664785]
[1768334962579,0.09655745,94423.0,94400.0,0.09031265]
[1768334962773,0.010594,94425.0,94403.0,0.09280785]
[1768334962969,0.010594,94425.0,94404.0,0.09280785]
[1768334963284,0.010594,94425.0,94404.0,0.15280785]
[1768334964677,0.09655745,94427.0,94404.0,0.15280785]
[1768334964874,0.010595,94422.0,94404.0,0.15280785]
[1768334965266,0.010634,94425.0,94404.0,0.15280785]
[1768334965474,8e-05,94425.0,94404.0,0.15280785]
[1768334965670,8e-05,94425.0,94406.0,0.09031265]
[1768334965872,0.00012,94425.0,94406.0,0.15031265]
[1768334966189,0.00012,94425.0,94407.0,0.45732]
[1768334966381,0.010592,94446.0,94407.0,0.45732]
[1768334966382,1.5,94454.0,94408.0,0.1831205]
[1768334966584,1.5,94454.0,94426.0,0.1831205]
[1768334966773,0.010591,94452.0,94429.0,0.09280785]
[1768334967080,1.5,94454.0,94430.0,0.09536]
[1768334967280,1.5,94454.0,94423.0,0.09280785]
[1768334967473,0.09337629,94450.0,94423.0,0.01]
[1768334967782,0.010593,94435.0,94424.0,0.25616]
[1768334967980,0.010591,94452.0,94424.0,0.26616]
[1768334967981,0.010592,94441.0,94424.0,0.26616]
[1768334968383,0.010592,94444.0,94425.0,0.84976]
[1768334968772,0.010592,94444.0,94425.0,0.85976]
[1768334968979,0.09655745,94446.0,94425.0,0.85976]
[1768334970078,0.010592,94441.0,94425.0,0.01]
[1768334970282,0.010592,94441.0,94426.0,0.3948]
[1768334971684,0.010592,94441.0,94426.0,0.4148]
[1768334972071,0.1930177,94438.0,94411.0,0.1831205]
[1768334972381,0.010593,94434.0,94412.0,0.09280785]
[1768334972587,0.010594,94431.0,94412.0,0.15280785]
[1768334972886,0.010593,94434.0,94413.0,0.44968]
[1768334973087,0.010593,94432.0,94414.0,1.00396]
[1768334973387,0.010593,94432.0,94414.0,1.05596]
[1768334973770,0.010593,94432.0,94415.0,0.90864]
[1768334973977,0.010593,94432.0,94416.0,0.09536]
[1768334974285,0.010593,94432.0,94416.0,0.15536]
[1768334974874,0.09185541,94433.0,94417.0,1.004]
[1768334975078,4e-05,94432.0,94417.0,0.06]
[1768334975484,8e-05,94432.0,94418.0,0.46484]
[1768334975783,0.00012,94432.0,94418.0,0.52484]
[1768334976175,0.010594,94431.0,94419.0,0.90864]
[1768334976381,0.010594,94431.0,94420.0,1.004]
[1768334976579,0.010594,94429.0,94421.0,1.004]
[1768334976772,0.010594,94428.0,94409.0,0.18726693]
[1768334976978,0.010594,94428.0,94409.0,0.23726693]
[1768334977173,0.010594,94428.0,94411.0,0.09355735]
[1768334977373,0.010594,94428.0,94412.0,0.18891735]
[1768334977577,0.010594,94428.0,94412.0,0.24891735]
[1768334978582,0.00012,94432.0,94412.0,0.06]
[1768334978583,0.010595,94422.0,94412.0,0.06]
[1768334978787,0.010594,94425.0,94412.0,0.06]
[1768334978981,0.010594,94425.0,94413.0,0.39592]
[1768334979180,0.010594,94425.0,94413.0,0.55128]
[1768334979989,0.010714,94428.0,94414.0,0.09536]
[1768334980291,0.010714,94428.0,94414.0,0.06]
[1768334980481,0.010714,94428.0,94415.0,0.09536]
[1768334980682,0.010714,94428.0,94415.0,0.14536]
[1768334980878,0.00012,94428.0,94415.0,0.14536]
[1768334981084,0.00012,94428.0,94415.0,0.21791735]
[1768334981591,0.00016,94428.0,94415.0,0.21791735]
[1768334981982,0.0002,94428.0,94415.0,0.21791735]
[1768334983086,0.09185541,94427.0,94416.0,1.00408]
[1768334983388,0.0002,94428.0,94416.0,1.05408]
[1768334983585,0.010594,94427.0,94416.0,1.05408]
[1768334983786,0.0002,94428.0,94397.0,0.09]
[1768334983787,0.0002,94428.0,94404.0,0.18726693]
[1768334983989,0.09185541,94419.0,94405.0,0.09536]
[1768334984184,0.09185541,94419.0,94405.0,0.05]
[1768334984382,0.09185541,94419.0,94406.0,0.09536]
[1768334984584,0.09185541,94419.0,94406.0,0.14536]
[1768334984788,0.09729063,94417.0,94391.0,0.18726693]
[1768334984987,0.09185541,94412.0,94391.0,0.39]
[1768334985290,0.09185541,94412.0,94392.0,0.77432]
[1768334985490,0.09185541,94412.0,94392.0,1.15432]
[1768334986291,0.0001589,94422.0,94392.0,1.15432]
[1768334986292,0.09185541,94418.0,94396.0,0.010597]
[1768334986485,0.010595,94416.0,94397.0,1.00412]